bitfinex/quotes_ETHUSD_20250404
["timestamp","ask_amount","ask_price","bid_price","bid_amount"]
[1743762630960,3.1336876,1795.2,1794.6,6.35489]
[1743762631147,6.879,1795.1,1794.8,5.57162]
[1743762631350,5.57117,1795.0,1794.6,0.7828]
[1743762631657,6.879,1795.1,1794.8,5.57142]
[1743762631825,6.879,1795.1,1794.9,5.57108]
[1743762632030,6.879,1795.1,1795.0,5.57103]
[1743762632572,16.49864302,1795.5,1795.2,5.57021]
[1743762632872,6.882,1795.5,1795.2,5.57028]
[1743762633076,6.882,1795.5,1795.2,5.5702]
[1743762633266,6.882,1795.5,1795.3,5.57008]
[1743762633477,9.1936876,1795.8,1795.0,5.57103]
[1743762633664,6.46908255,1795.8,1795.4,5.56977]
[1743762633996,5.56918,1795.6,1795.2,5.5704]
[1743762634290,5.57034,1795.3,1794.8,5.57138]
[1743762634446,12.43834,1795.3,1794.8,5.57138]
[1743762634649,5.57042,1795.2,1794.8,5.57138]
[1743762634849,5.57042,1795.2,1794.7,11.14374]
[1743762635078,12.84789761,1795.3,1794.8,5.57163]
[1743762635251,12.84789761,1795.3,1794.8,5.57149]
[1743762635450,5.57046,1795.2,1794.8,5.57149]
[1743762635899,9.2795076,1795.1,1794.6,5.57215]
[1743762636191,12.84794761,1795.3,1794.8,11.143]
[1743762636394,12.84794761,1795.3,1794.8,1.11987171]
[1743762636689,12.84794761,1795.3,1794.8,5.57163]
[1743762636897,12.84794761,1795.3,1794.7,5.57192]
[1743762637057,6.868,1795.3,1794.6,5.62797184]
[1743762637266,0.5748,1795.4,1795.2,5.57024]
[1743762637583,6.849,1795.4,1795.2,5.57024]
[1743762637878,6.849,1795.4,1794.9,11.9049]
[1743762637879,12.83635512,1795.4,1794.9,11.9049]
[1743762638081,12.41889,1795.4,1795.0,5.57098]
[1743762638287,17.98889,1795.4,1794.9,6.33367]
[1743762638483,5.57017,1795.3,1794.9,6.33367]
[1743762638850,5.56952,1795.5,1795.0,5.62657812]
[1743762639047,16.1094176,1795.7,1795.0,0.05570812]
[1743762639403,27.3758,1795.9,1795.2,5.57029]
[1743762639699,27.3758,1795.9,1795.4,5.56958]
[1743762639906,27.3758,1795.9,1794.8,6.16]
[1743762640066,3.7084876,1795.4,1794.8,5.57154]
[1743762640398,7.4158,1795.4,1794.8,5.57154]
[1743762640596,6.841,1795.4,1795.0,5.57102]
[1743762640889,6.841,1795.4,1795.3,5.57009]
[1743762641184,6.841,1795.4,1795.2,6.36808]
[1743762641390,6.841,1795.4,1795.1,5.57066]
[1743762641556,6.841,1795.4,1795.2,5.57038]
[1743762641887,9.2525976,1795.7,1795.2,11.14062]
[1743762642096,6.833,1795.6,1795.4,5.56958]
[1743762642304,34.61787279,1795.9,1795.3,5.56999]
[1743762642473,40.18614279,1795.9,1795.4,5.56964]
[1743762642657,34.2068,1795.9,1795.5,5.56936]
[1743762642880,6.881,1795.9,1795.7,5.56867]
[1743762643464,6.881,1795.9,1795.8,5.56854]
[1743762643662,10.881,1795.9,1795.7,11.13741]
[1743762643980,4.05,1795.9,1795.8,5.56854]
[1743762644182,0.5748,1796.5,1796.4,5.56668]
[1743762644489,3.1836876,1796.9,1796.7,5.56561]
[1743762644490,7.4418,1796.9,1796.7,5.56561]
[1743762644675,0.05,1796.9,1796.8,5.56544]
[1743762645078,1e-05,1796.9,1796.8,6.34674]
[1743762645278,1e-05,1796.9,1796.8,7.537975]
[1743762645664,1e-05,1796.9,1796.8,7.59360972]
[1743762645866,1.39458444,1797.7,1797.6,5.56297]
[1743762646073,1.39458444,1797.7,1797.4,5.56329]
[1743762646279,1.39458444,1797.7,1797.3,6.38979]
[1743762646280,1.39458444,1797.7,1797.6,5.56297]
[1743762646459,1.39458444,1797.7,1797.6,6.119267]
[1743762646792,4.44e-06,1797.7,1797.6,6.97988381]
[1743762646991,4.44e-06,1797.7,1797.6,6.97987865]
[1743762647164,4.44e-06,1797.9,1797.8,5.56235]
[1743762647365,4.44e-06,1797.9,1797.8,5.61796284]
[1743762647565,4.44e-06,1797.9,1797.8,7.55731512]
[1743762647764,4.44e-06,1797.9,1797.8,7.55730641]
[1743762648366,4.44e-06,1797.9,1797.8,13.71730641]
[1743762648589,4.44e-06,1797.9,1797.8,13.66170228]
[1743762650173,1.21125111,1798.3,1798.2,5.56111]
[1743762650393,1.21125111,1798.3,1798.2,6.72895406]
[1743762650786,1.21125111,1798.3,1798.2,6.673353]
[1743762651187,1.21125111,1798.3,1798.2,5.61671269]
[1743762651502,1.21125111,1798.3,1798.2,5.56111]
[1743762652064,1.21125111,1798.3,1798.2,5.61670883]
[1743762652266,1.21125111,1798.3,1798.2,5.56111]
[1743762652471,1.21125111,1798.3,1798.1,5.56132]
[1743762652667,1.21125111,1798.3,1798.0,6.3572]
[1743762652897,1.21125111,1798.3,1798.1,0.05560375]
[1743762653101,15.39023,1798.5,1798.1,0.05560375]
[1743762653508,9.83,1798.5,1797.8,1.11805228]
[1743762653804,9.83,1798.5,1798.2,5.56092]
[1743762654103,9.83,1798.5,1798.1,5.56118]
[1743762654483,9.83,1798.5,1798.1,5.61678456]
[1743762654684,15.39031,1798.5,1797.9,5.56203]
[1743762654885,5.56062,1798.4,1797.9,5.56203]
[1743762655206,8.56125,1798.2,1797.7,6.35051]
[1743762655404,8.56125,1798.2,1797.7,5.56264]
[1743762655604,14.53780623,1798.2,1797.6,11.681947]
[1743762655902,3.0,1797.8,1797.4,11.92817]
[1743762656203,3.0,1797.8,1797.5,5.56322]
[1743762656408,3.0,1797.8,1797.6,5.56276]
[1743762656575,3.0,1797.8,1797.4,11.92814]
[1743762656777,3.0,1797.8,1797.4,6.36472]
[1743762656979,3.0,1797.8,1797.5,5.56314]
[1743762657183,3.0,1797.8,1797.6,0.05562314]
[1743762657418,9.787,1798.2,1797.7,5.56243]
[1743762657817,9.787,1798.2,1797.8,11.18001486]
[1743762658016,0.55,1798.1,1797.6,5.5627]
[1743762658206,0.55,1798.1,1797.7,5.61814013]
[1743762658408,15.34815,1798.2,1797.7,5.56266]
[1743762658603,3.1336876,1798.0,1797.4,7.001112]
[1743762658805,6.13345,1797.9,1797.4,12.564572]
[1743762659044,3.5714,1797.9,1797.6,5.56293]
[1743762659245,6.784,1798.1,1797.7,5.56263]
[1743762659414,12.34544,1798.1,1797.6,6.675549]
[1743762659612,6.784,1798.1,1797.7,5.56261]
[1743762659817,6.784,1798.1,1797.8,11.17999172]
[1743762660017,8.6954476,1798.0,1797.6,5.56277]
[1743762660222,3.1336876,1798.0,1797.6,11.12553]
[1743762660417,3.1336876,1798.0,1797.6,5.56276]
[1743762660937,3.0,1798.0,1797.8,5.56232]
[1743762661145,3.0,1798.0,1797.8,5.56223]
[1743762661316,0.5714,1798.2,1797.7,5.61827863]
[1743762661521,3.0,1798.2,1797.8,5.5622]
[1743762661742,0.55,1798.1,1797.8,5.56217]
[1743762662126,3.0,1798.2,1797.9,5.56198]
[1743762662462,6.767,1798.2,1797.9,5.56196]
[1743762662633,6.767,1798.2,1797.9,5.56189]
[1743762662831,6.767,1798.2,1798.0,5.56171]
[1743762663071,7.3314,1798.7,1798.5,5.56018]
[1743762663220,6.13012,1799.0,1798.6,5.55974]
[1743762663530,6.764,1798.9,1798.5,0.05559392]
[1743762663716,36.098,1799.3,1798.5,0.05559392]
[1743762663717,6.6314,1799.5,1798.6,5.55987]
[1743762663914,7.19083432,1799.7,1799.4,5.5574]
[1743762664140,0.5714,1799.8,1799.6,5.55663]
[1743762664418,0.05,1799.9,1799.7,5.55623]
[1743762664818,5.60598,1799.9,1799.5,5.55697]
[1743762665059,0.05,1799.9,1799.1,5.55806]
[1743762665234,0.5714,1799.8,1799.3,5.5576]
[1743762665445,9.12784,1799.8,1799.3,5.5576]
[1743762665761,6.12784,1799.8,1799.4,5.55739]
[1743762665963,6.12784,1799.8,1799.3,5.55757]
[1743762666166,6.836,1799.9,1799.5,5.55692]
[1743762666376,3.0,1799.8,1799.5,5.55692]
[1743762666657,5.55677,1799.7,1799.2,6.113826]
[1743762666862,3.0,1799.6,1799.2,5.55787]
[1743762667063,6.836,1799.9,1799.7,5.55636]
[1743762667231,0.05,1799.9,1799.7,5.55636]
[1743762667442,0.05,1799.9,1799.7,5.55628]
[1743762667643,3.05,1799.9,1799.6,5.55677]
[1743762667962,0.05,1799.9,1799.7,5.55636]
[1743762668172,0.05,1799.9,1799.8,5.55617]
[1743762668342,0.05,1799.9,1799.7,5.5563]
[1743762668543,0.05,1799.9,1799.4,0.771]
[1743762668754,0.05,1799.9,1799.6,5.55663]
[1743762669065,0.05,1799.9,1799.5,5.55709]
[1743762669267,0.05,1799.9,1799.8,5.55617]
[1743762670237,0.05,1799.9,1799.8,5.61171936]
[1743762670856,0.05,1799.9,1799.7,5.55636]
[1743762671071,0.05,1799.9,1799.8,5.55617]
[1743762671265,0.5714,1799.8,1799.4,5.5572]
[1743762671572,0.55,1799.8,1799.7,5.55648]
[1743762671735,0.05,1799.9,1799.5,5.55708]
[1743762671935,0.05,1799.9,1799.4,6.668878]
[1743762671936,3.0,1799.8,1799.4,6.668878]
[1743762672259,3.0,1799.8,1799.5,5.6126057]
[1743762672464,8.55629,1799.8,1799.4,5.55738]
[1743762672664,0.5714,1799.7,1799.1,0.7691]
[1743762672873,0.5714,1799.7,1799.3,5.55744]
[1743762673038,0.5714,1799.7,1799.4,5.55712]
[1743762673438,0.05,1799.9,1799.6,5.55654]
[1743762673638,0.05,1799.9,1799.5,5.55709]
[1743762673837,8.55635,1799.8,1799.4,5.55725]
[1743762674060,3.342,1799.6,1799.3,5.55752]
[1743762674278,8.55635,1799.8,1799.3,11.11504]
[1743762674585,0.55,1799.8,1799.2,5.61348055]
[1743762674739,0.55,1799.8,1799.5,5.55692]
[1743762674948,3.05,1799.9,1799.6,5.55675]
[1743762675146,3.05,1799.9,1799.4,0.05556653]
[1743762675353,14.16199,1799.9,1799.4,5.55712]
[1743762675559,8.55679,1799.6,1799.2,5.55799]
[1743762675756,0.55,1799.6,1799.3,5.55758]
[1743762675976,0.46221017,1799.9,1799.5,5.55709]
[1743762675977,6.01819017,1799.9,1799.5,5.55709]
[1743762676164,3.55,1799.7,1799.2,5.55802]
[1743762676366,9.10657,1799.7,1798.9,6.38823]
[1743762676558,3.0,1799.7,1799.5,5.55685]
[1743762676757,3.0,1799.7,1798.9,6.38823]
[1743762676758,3.0,1799.7,1799.4,5.55738]
[1743762677298,3.0,1799.5,1799.2,5.55799]
[1743762677593,0.5873,1799.5,1799.1,5.5581]
[1743762677880,3.0,1799.7,1799.4,5.55721]
[1743762678048,0.46221017,1799.9,1799.2,5.55781]
[1743762678049,0.6,1799.9,1799.2,5.55781]
[1743762678249,0.6,1799.9,1799.8,5.55617]
[1743762678250,1e-05,1799.9,1799.8,5.55617]
[1743762678481,1e-05,1799.9,1799.8,6.32187]
[1743762679575,1e-05,1799.9,1799.8,6.37741247]
[1743762679860,1e-05,1799.9,1799.8,8.2550949]
[1743762680578,1e-05,1799.9,1799.8,8.19954625]
[1743762680748,1e-05,1799.9,1799.8,5.55617]
[1743762681350,1e-05,1799.9,1799.7,11.11264]
[1743762681552,1e-05,1799.9,1799.7,5.55629]
[1743762681880,1e-05,1799.9,1799.8,5.55617]
[1743762682083,0.58731,1799.9,1799.7,5.55629]
[1743762682496,1e-05,1799.9,1799.8,5.55617]
[1743762686567,1e-05,1799.9,1799.5,5.55685]
[1743762686568,6.14328,1799.9,1799.5,5.55708]
[1743762686768,6.14328,1799.9,1799.5,11.11408]
[1743762687070,0.55,1799.8,1799.4,5.55739]
[1743762687378,0.55,1799.8,1799.2,5.55787]
[1743762687582,3.1336876,1799.5,1798.9,5.55878]
[1743762687766,7.4153,1799.4,1798.7,5.6151564]
[1743762687978,0.5873,1799.7,1799.0,0.8321]
[1743762688291,0.5873,1799.7,1799.5,5.55687]
[1743762688620,7.39301,1799.9,1799.0,0.8321]
[1743762688766,0.5873,1799.6,1799.2,5.55791]
[1743762688972,0.5873,1799.6,1799.2,5.55787]
[1743762689201,0.5873,1799.6,1799.0,5.55864]
[1743762689471,0.5873,1799.6,1799.2,5.55802]
[1743762689694,5.55756,1799.4,1799.0,5.55864]
[1743762689903,9.863,1799.5,1799.3,5.55766]
[1743762690103,3.0,1799.8,1799.5,5.55693]
[1743762690291,3.0,1799.8,1799.1,5.55822]
[1743762690492,5.55694,1799.6,1799.1,5.55817]
[1743762690676,3.0,1799.5,1799.1,5.5583]
[1743762690880,8.55721,1799.5,1799.1,5.5583]
[1743762691141,3.55,1799.6,1798.6,0.7611]
[1743762691284,3.0,1799.8,1799.6,5.55665]
[1743762691485,10.49531,1799.9,1799.6,11.11328]
[1743762691697,16.05136,1799.9,1799.5,5.55707]
[1743762691880,3.58731,1799.9,1799.7,5.55623]
[1743762692100,10.48631,1799.9,1799.6,5.55668]
[1743762692303,10.48631,1799.9,1799.4,5.55738]
[1743762692304,5.55623,1799.8,1799.4,5.55738]
[1743762692615,5.55623,1799.8,1799.3,5.55757]
[1743762692616,0.55,1799.6,1799.3,5.55757]
[1743762692793,0.55,1799.6,1799.2,5.55799]
[1743762692997,6.1068,1799.6,1799.2,5.55799]
[1743762693185,0.55,1799.6,1799.3,5.55771]
[1743762693383,5.55621,1799.8,1799.3,5.55755]
[1743762693695,8.55658,1799.7,1799.3,6.113365]
[1743762693890,10.6199976,1799.9,1799.4,0.05556906]
[1743762693891,6.14319,1799.9,1799.4,0.05556906]
[1743762694091,6.881,1799.8,1799.2,5.61342817]
[1743762694313,6.881,1799.8,1799.5,5.55709]
[1743762694484,6.881,1799.8,1799.2,5.5579]
[1743762694485,0.55,1799.6,1799.2,5.5579]
[1743762694888,0.55,1799.6,1799.4,5.55729]
[1743762695180,3.0,1799.7,1799.4,0.555729]
[1743762695386,3.0,1799.7,1799.5,5.55709]
[1743762695588,3.0,1799.7,1799.6,5.55679]
[1743762695786,0.58731,1799.9,1799.7,5.55636]
[1743762696115,1e-05,1799.9,1799.8,5.55617]
[1743762696318,1e-05,1799.9,1799.8,6.72298092]
[1743762696541,1e-05,1799.9,1799.8,6.72297215]
[1743762696817,0.05,1800.9,1800.8,5.55308]
[1743762697300,0.05,1800.9,1800.7,5.55327]
[1743762697301,0.05,1800.9,1800.5,5.55375]
[1743762697503,3.05,1800.9,1800.5,5.55375]
[1743762697705,6.933,1800.9,1800.5,5.5539]
[1743762697896,0.05,1800.9,1800.3,6.32195]
[1743762698092,0.05,1800.9,1800.6,5.55351]
[1743762698504,0.05,1800.9,1800.6,5.5537]
[1743762698714,0.05,1800.9,1800.7,5.55319]
[1743762699419,0.05,1800.9,1800.7,5.55337]
[1743762699619,0.05,1800.9,1800.7,5.55338]
[1743762700322,0.6,1800.9,1800.7,5.55338]
[1743762700614,0.6,1800.9,1800.7,5.55318]
[1743762701025,0.05,1800.9,1800.8,5.55308]
[1743762701466,0.05,1800.9,1800.6,5.5537]
[1743762701626,0.55,1800.8,1800.4,5.5542]
[1743762701943,3.0,1800.7,1800.1,5.55504]
[1743762702239,0.55,1800.5,1800.3,5.55461]
[1743762702410,0.55,1800.6,1800.3,5.55449]
[1743762702605,0.55,1800.6,1800.5,5.55401]
[1743762702828,7.4783,1800.8,1800.6,5.5537]
[1743762703034,0.6,1800.9,1800.6,5.55369]
[1743762703423,0.6,1800.9,1800.7,5.55327]
[1743762703613,0.05,1800.9,1800.8,5.60861086]
[1743762704239,0.05,1800.9,1800.8,6.39571086]
[1743762704545,0.05,1800.9,1800.8,5.55308]
[1743762705454,0.05,1800.9,1800.6,5.55363]
[1743762705654,0.05,1800.9,1800.8,5.55308]
[1743762705807,0.05,1800.9,1800.5,5.55384]
[1743762706156,3.0,1800.6,1800.2,5.5548]
[1743762706440,1.1373,1800.5,1800.0,6.39223]
[1743762706643,1.1373,1800.5,1800.2,5.55474]
[1743762707007,1.1373,1800.5,1800.1,0.0555448]
[1743762707443,0.55,1800.3,1800.0,11.11068]
[1743762707642,6.10464,1800.3,1799.9,5.55583]
[1743762707847,4.1365,1800.0,1799.6,11.11322]
[1743762708143,11.0085,1800.0,1799.7,5.55647]
[1743762708341,11.0085,1800.0,1799.5,5.55705]
[1743762708342,16.56408,1800.0,1799.5,5.55705]
[1743762708644,16.56408,1800.0,1799.4,5.55727]
[1743762708645,3.55,1799.8,1799.4,5.55727]
[1743762708943,3.55,1799.6,1799.2,5.55787]
[1743762709143,3.55,1799.6,1798.9,0.8176]
[1743762709144,0.55,1799.3,1798.9,0.8176]
[1743762709343,0.55,1799.3,1799.1,5.55828]
[1743762709508,0.55,1799.3,1799.0,5.55857]
[1743762709707,3.0,1799.6,1799.4,5.55717]
[1743762710135,0.55,1799.5,1799.1,5.55819]
[1743762710333,6.10735,1799.5,1799.0,5.5585]
[1743762710531,6.10735,1799.5,1799.0,11.11696]
[1743762710841,0.55,1799.3,1799.0,5.55844]
[1743762711214,3.55,1799.3,1799.0,5.55847]
[1743762711452,0.55,1799.3,1799.0,5.55847]
[1743762712513,0.55,1799.0,1798.6,5.55981]
[1743762713775,0.55,1799.0,1798.3,0.7769]
[1743762713963,5.56033,1798.5,1798.1,0.05]
[1743762714127,3.55,1798.4,1798.1,0.05]
[1743762714331,9.69714,1798.4,1798.1,0.05]
[1743762714740,6.11111,1798.2,1798.1,0.05]
[1743762714940,9.11111,1798.2,1798.1,0.05]
[1743762715183,9.11111,1798.2,1797.2,5.56415]
[1743762715184,5.56283,1797.7,1796.9,5.56513]
[1743762715472,3.0,1797.5,1797.4,5.56332]
[1743762715769,3.0,1797.7,1797.6,5.56297]
[1743762715918,9.861,1797.8,1797.6,6.675586]
[1743762716117,9.861,1797.8,1797.6,5.56297]
[1743762716313,3.0,1797.8,1797.6,5.56297]
[1743762716529,0.55,1797.6,1796.9,6.34683]
[1743762716759,0.55,1797.6,1797.2,5.56399]
[1743762716933,0.55,1797.4,1797.2,5.56412]
[1743762717116,3.0,1797.5,1797.2,12.241027]
[1743762717332,3.0,1797.5,1797.2,12.240957]
[1743762717720,3.0,1797.5,1797.4,5.56359]
[1743762717961,6.849,1797.6,1797.5,5.56305]
[1743762717962,3.0,1797.6,1797.5,5.56305]
[1743762718170,6.849,1797.7,1797.5,5.56303]
[1743762718373,6.849,1797.7,1796.9,6.34682]
[1743762718662,6.849,1797.7,1797.6,5.56297]
[1743762718663,9.849,1797.7,1797.6,5.56297]
[1743762719065,9.849,1797.7,1797.5,5.56301]
[1743762719419,3.0,1797.7,1797.6,5.56297]
[1743762719861,3.0,1797.7,1797.5,11.12614]
[1743762720165,3.0,1797.7,1797.6,5.56297]
[1743762720319,3.0,1797.7,1797.5,5.56301]
[1743762720520,0.67519688,1798.2,1797.6,0.0556267]
[1743762720772,7.4085,1798.5,1798.2,5.56106]
[1743762720933,0.55,1798.3,1797.8,5.56218]
[1743762721273,0.55,1798.3,1797.9,5.56182]
[1743762721475,3.0,1798.4,1798.1,5.56129]
[1743762721775,12.96881,1798.5,1798.0,5.56172]
[1743762721985,3.0,1798.4,1798.0,5.56172]
[1743762722121,0.55,1798.3,1798.0,5.56172]
[1743762722322,0.55,1798.3,1797.9,5.56204]
[1743762722584,0.55,1798.3,1797.8,5.56229]
[1743762722740,0.55,1797.8,1797.4,5.56358]
[1743762723075,0.55,1797.8,1797.3,5.5639]
[1743762723227,3.0,1797.8,1797.6,5.56284]
[1743762723580,6.6465,1798.3,1797.9,5.56204]
[1743762723891,7.3995,1798.3,1798.0,5.56159]
[1743762724051,7.3995,1798.3,1797.9,5.56204]
[1743762724258,0.55,1798.2,1797.9,11.12384]
[1743762724458,3.0,1798.2,1798.0,5.56166]
[1743762724630,3.0,1798.2,1797.6,1.313984]
[1743762724826,3.0,1798.2,1797.9,5.56203]
[1743762725177,3.0,1798.2,1797.8,5.56216]
[1743762725355,3.0,1797.9,1797.5,5.56323]
[1743762725564,0.55,1798.0,1797.6,5.56288]
[1743762725763,0.55,1798.0,1797.5,5.56301]
[1743762726077,3.0,1797.4,1796.6,0.7962]
[1743762726370,0.55,1797.3,1797.0,5.5647]
[1743762726591,6.11403,1797.3,1796.8,5.56516]
[1743762726734,0.5865,1797.2,1796.8,5.56543]
[1743762726931,0.55,1797.1,1796.8,5.56543]
[1743762727299,3.0,1797.0,1796.6,5.56605]
[1743762727634,3.5865,1797.2,1796.6,5.62170466]
[1743762727839,0.55,1797.1,1796.7,5.56552]
[1743762728038,8.56498,1797.0,1796.5,5.5663]
[1743762728269,8.56498,1797.0,1796.4,0.8238]
[1743762728270,0.55,1796.8,1796.4,5.56645]
[1743762728449,0.55,1796.8,1796.6,5.56606]
[1743762728662,0.55,1796.8,1796.7,5.56575]
[1743762728977,9.82,1796.9,1796.8,5.56544]
[1743762729132,0.55,1797.0,1796.8,5.56544]
[1743762729336,3.55,1797.0,1796.7,5.56575]
[1743762729545,3.55,1797.0,1796.7,11.13129]
[1743762729945,9.804,1797.1,1796.8,5.56541]
[1743762730145,9.804,1797.1,1796.6,5.56604]
[1743762730146,0.55,1797.0,1796.6,5.56604]
[1743762730589,6.11487,1797.0,1796.6,5.56604]
[1743762731142,0.55,1797.0,1796.5,5.56636]
[1743762731339,0.55,1797.0,1796.1,0.05]
[1743762731340,3.0,1796.3,1796.1,0.05]
[1743762731557,15.36019,1796.3,1796.1,0.05]
[1743762731735,8.5673,1796.2,1796.1,0.05]
[1743762731942,9.7038,1796.2,1796.1,0.05]
[1743762732170,4.1365,1796.2,1796.1,0.05]
[1743762732438,3.5865,1796.2,1796.1,0.05]
[1743762732843,3.5865,1796.2,1796.1,5.61761]
[1743762733093,3.5865,1796.2,1796.1,6.712512]
[1743762733094,3.0,1796.2,1796.1,6.712512]
[1743762733251,3.0,1796.2,1796.1,5.61761]
[1743762733642,6.799,1796.6,1796.4,5.56668]
[1743762733840,3.0,1796.5,1796.3,5.56694]
[1743762734076,1.1365,1796.8,1796.7,5.56575]
[1743762734256,6.795,1796.9,1796.8,5.56544]
[1743762734458,6.799,1797.3,1797.0,5.56482]
[1743762734671,6.799,1797.3,1797.0,5.56469]
[1743762734838,6.799,1797.3,1796.5,0.7854]
[1743762735044,3.0,1797.0,1796.6,5.56606]
[1743762735243,0.55,1796.9,1796.5,0.05565871]
[1743762735437,3.0,1797.1,1796.8,5.56544]
[1743762735682,6.06,1797.2,1797.0,5.56478]
[1743762735988,3.0,1797.2,1796.8,5.56537]
[1743762736194,1.1365,1796.8,1796.3,5.56682]
[1743762736363,3.0,1796.6,1796.4,5.56645]
[1743762736989,3.0,1796.6,1796.5,5.56637]
[1743762737684,0.55,1796.5,1796.3,5.56697]
[1743762737890,3.0,1796.6,1796.3,11.13375]
[1743762738094,2.95797374,1796.6,1796.4,11.13313]
[1743762738390,7.389,1796.9,1796.6,5.56585]
[1743762738591,0.55,1796.9,1796.6,5.56585]
[1743762738793,10.5226876,1796.9,1796.3,5.56681]
[1743762739030,6.11592,1796.7,1796.2,5.5673]
[1743762739144,6.11665,1796.5,1796.1,0.05]
[1743762739348,6.849,1796.4,1796.1,5.61748]
[1743762739580,6.849,1796.4,1796.2,5.56712]
[1743762739747,6.14872553,1797.2,1796.3,0.7696]
[1743762739947,0.5894,1797.2,1796.8,5.56519]
[1743762740270,1.1394,1797.2,1796.4,5.56668]
[1743762740488,3.5894,1797.2,1796.9,5.56513]
[1743762740697,9.15365,1797.2,1796.7,5.56561]
[1743762740873,11.62332,1797.5,1796.6,0.8261]
[1743762740874,0.5894,1797.5,1796.6,0.8261]
[1743762741044,39.14851,1797.8,1797.3,5.56365]
[1743762741243,0.5894,1797.7,1797.5,5.56299]
[1743762741694,33.586,1797.8,1797.6,5.56281]
[1743762741999,33.586,1797.8,1797.6,5.56277]
[1743762742189,33.586,1797.8,1797.2,0.7729]
[1743762742190,3.0,1797.7,1797.5,5.56309]
[1743762742395,6.878,1797.8,1797.6,5.56292]
[1743762742693,0.5894,1798.0,1797.2,6.33689]
[1743762742878,5.56218,1797.9,1797.5,5.56326]
[1743762743243,0.55,1797.9,1797.6,5.56286]
[1743762743560,6.11217,1797.9,1797.5,5.56313]
[1743762743762,6.15128,1798.0,1797.3,5.56387]
[1743762743988,6.6494,1798.3,1797.5,6.36998]
[1743762744144,7.4784,1798.9,1798.3,5.56055]
[1743762744343,7.4784,1798.9,1797.8,5.56235]
[1743762744344,3.0,1798.8,1798.6,5.55985]
[1743762744672,3.0,1798.4,1798.0,5.56155]
[1743762744990,7.447,1798.3,1797.7,5.56264]
[1743762745194,6.11198,1798.0,1797.5,5.56326]
[1743762745398,3.0,1797.9,1797.5,11.12634]
[1743762745598,3.0,1797.7,1797.5,5.56327]
[1743762745891,3.0,1797.7,1797.4,5.56354]
[1743762746044,3.0,1797.7,1797.3,5.56365]
[1743762746045,3.0,1797.7,1797.3,11.12741]
[1743762746245,3.0,1797.7,1797.4,5.56353]
[1743762746446,3.0,1797.7,1797.5,5.56299]
[1743762746747,3.0,1797.7,1797.6,5.56297]
[1743762746948,6.11201,1798.0,1797.8,5.56212]
[1743762746949,3.0,1798.0,1797.8,5.56212]
[1743762747259,6.885,1798.6,1798.4,5.5603]
[1743762747481,6.885,1798.6,1798.5,5.56018]
[1743762747678,6.885,1798.6,1798.4,5.56038]
[1743762747862,6.885,1798.6,1798.4,5.56029]
[1743762748205,7.4684,1799.0,1798.6,5.55983]
[1743762748490,7.4684,1799.0,1798.6,5.55966]
[1743762748701,7.4684,1799.0,1798.2,0.7682]
[1743762748860,5.56081,1798.3,1797.8,5.56217]
[1743762749047,5.56185,1798.0,1797.4,5.56355]
[1743762749248,3.0,1797.8,1797.4,11.12684]
[1743762749501,6.895,1797.7,1797.4,11.12684]
[1743762749788,6.895,1797.7,1797.4,11.12683]
[1743762749995,6.895,1797.7,1797.4,5.56338]
[1743762750319,6.895,1797.7,1797.3,5.56381]
[1743762750450,6.895,1797.7,1797.3,5.56373]
[1743762750651,6.895,1797.7,1797.5,5.56306]
[1743762750962,6.895,1797.7,1797.6,5.56297]
[1743762751166,6.895,1797.7,1797.5,5.56306]
[1743762751467,6.7230876,1797.6,1796.9,5.5651]
[1743762751774,3.5894,1797.6,1797.1,5.56441]
[1743762752098,0.5894,1797.8,1797.4,5.56334]
[1743762752398,6.874,1797.8,1797.5,5.61888649]
[1743762752600,6.874,1797.8,1797.3,5.5636]
[1743762752801,6.874,1797.8,1797.1,5.56452]
[1743762752950,6.874,1797.8,1797.6,5.56296]
[1743762753150,3.0,1798.1,1797.4,5.56341]
[1743762753447,3.0,1798.1,1797.5,0.0556164]
[1743762753652,6.876,1798.2,1798.1,5.56142]
[1743762753893,6.878,1798.5,1798.0,0.0556105]
[1743762754116,0.5894,1798.7,1798.3,5.56059]
[1743762754293,6.892,1798.9,1798.8,5.55926]
[1743762754494,3.5894,1799.0,1798.6,5.55981]
[1743762754716,5.55896,1798.9,1798.4,0.8054]
[1743762754995,3.5894,1799.0,1798.3,5.56067]
[1743762755325,8.5603,1798.5,1798.1,5.56127]
[1743762755513,0.55,1798.4,1798.0,0.8097]
[1743762755723,6.11071,1798.4,1798.0,5.56173]
[1743762755934,8.56087,1798.3,1797.9,5.56196]
[1743762756222,3.55,1798.2,1797.9,5.56196]
[1743762756516,3.0,1797.9,1797.6,5.56295]
[1743762756818,7.43,1797.9,1797.7,5.56265]
[1743762757318,9.88,1797.9,1797.8,5.56235]
[1743762757521,7.4724,1798.6,1798.3,5.56064]
[1743762757899,7.4724,1798.6,1797.9,0.7749]
[1743762758087,8.5603,1798.5,1798.1,5.56125]